bitfinex-derivatives/quotes_BTCF0:USTF0_20240824
["timestamp","ask_amount","ask_price","bid_price","bid_amount"]
[1724503221447,0.077834,64208.0,64206.0,0.59158352]
[1724503221646,0.077834,64208.0,64207.0,0.14293652]
[1724503221846,0.077834,64208.0,64207.0,0.50373652]
[1724503222046,0.077834,64208.0,64207.0,0.54041285]
[1724503223947,0.077834,64208.0,64207.0,0.5170775]
[1724503224149,0.077834,64208.0,64207.0,0.54141294]
[1724503224354,0.077834,64208.0,64207.0,0.54241294]
[1724503224949,0.077834,64208.0,64207.0,0.5180775]
[1724503225352,0.077834,64208.0,64207.0,0.54241294]
[1724503226054,0.077834,64208.0,64207.0,0.18161294]
[1724503226248,0.077834,64208.0,64207.0,0.54241294]
[1724503227644,0.077834,64208.0,64207.0,0.18161294]
[1724503227850,0.077834,64208.0,64207.0,0.54241294]
[1724503228660,0.077834,64208.0,64207.0,0.5180775]
[1724503228859,0.077834,64208.0,64207.0,0.54241293]
[1724503229749,0.077834,64208.0,64207.0,0.54245293]
[1724503231356,0.077834,64208.0,64207.0,0.58361162]
[1724503234865,0.077834,64208.0,64207.0,0.55927619]
[1724503235159,0.077834,64208.0,64207.0,0.58361157]
[1724503237660,0.077834,64208.0,64207.0,0.67361157]
[1724503239660,0.077834,64208.0,64207.0,0.67361035]
[1724503241268,0.077834,64208.0,64207.0,0.31281015]
[1724503241468,0.077834,64208.0,64207.0,0.64927497]
[1724503241860,0.077834,64208.0,64207.0,0.67361015]
[1724503242861,0.077834,64208.0,64207.0,0.31281015]
[1724503243060,0.077834,64208.0,64207.0,0.67361015]
[1724503243659,0.077834,64208.0,64207.0,0.67360782]
[1724503245068,0.077834,64208.0,64207.0,0.50577282]
[1724503245278,0.23011907,64208.0,64207.0,0.38717518]
[1724503245963,0.27561907,64208.0,64207.0,0.38717518]
[1724503246475,0.077839,64204.0,64200.0,0.07748029]
[1724503246772,0.077839,64204.0,64196.0,0.00023368]
[1724503246773,0.077847,64197.0,64196.0,0.00023368]
[1724503246975,0.23013503,64197.0,64196.0,0.00023368]
[1724503247367,0.167847,64197.0,64196.0,0.06219577]
[1724503247772,3.937847,64197.0,64196.0,0.06219577]
[1724503247963,3.937847,64197.0,64196.0,0.00023368]
[1724503248168,3.982947,64197.0,64196.0,0.00023368]
[1724503249372,3.982947,64197.0,64196.0,0.04666494]
[1724503249774,3.982947,64197.0,64196.0,0.06391894]
[1724503249976,3.984947,64197.0,64196.0,0.06391894]
[1724503250475,3.984947,64197.0,64196.0,0.01748768]
[1724503252277,3.984947,64197.0,64196.0,0.00023368]
[1724503253181,3.984947,64197.0,64196.0,0.04666494]
[1724503253774,3.984947,64197.0,64196.0,0.00023368]
[1724503254170,4.062794,64197.0,64196.0,0.00023368]
[1724503254579,0.07785,64195.0,64194.0,0.01694481]
[1724503254881,0.077859,64187.0,64186.0,0.04643126]
[1724503255180,0.167859,64187.0,64186.0,0.04643126]
[1724503255483,0.077861,64186.0,64185.0,0.04643126]
[1724503255984,0.077862,64185.0,64184.0,0.04643126]
[1724503256371,0.077862,64185.0,64183.0,0.22192265]
[1724503256577,0.077862,64185.0,64183.0,0.17549139]
[1724503256876,0.077862,64185.0,64183.0,0.22192265]
[1724503257079,0.00023306,64192.0,64183.0,0.22192265]
[1724503257080,0.167863,64184.0,64183.0,0.05405865]
[1724503257269,0.167863,64184.0,64182.0,0.09244605]
[1724503257475,0.09,64189.0,64182.0,0.15308997]
[1724503257675,0.09,64189.0,64187.0,0.3608]
[1724503258283,0.167857,64189.0,64188.0,4e-05]
[1724503259883,0.077857,64189.0,64188.0,0.09004]
[1724503260086,0.077857,64189.0,64188.0,0.09304]
[1724503261089,0.077857,64189.0,64188.0,0.09604]
[1724503262677,0.167857,64189.0,64188.0,0.00604]
[1724503266275,0.077857,64189.0,64188.0,0.00604]
[1724503266781,0.077857,64189.0,64188.0,0.36684]
[1724503268279,0.077857,64189.0,64188.0,0.00604]
[1724503268480,0.077857,64189.0,64188.0,0.36684]
[1724503269480,0.077857,64189.0,64188.0,0.00604]
[1724503269682,0.077857,64189.0,64188.0,0.36684]
[1724503271281,0.077897,64189.0,64188.0,0.36684]
[1724503273285,0.077897,64189.0,64188.0,0.00604]
[1724503275484,0.077897,64189.0,64188.0,0.05234014]
[1724503275891,0.077897,64189.0,64188.0,0.00604]
[1724503276287,0.077897,64189.0,64188.0,0.05233205]
[1724503276487,0.12457006,64189.0,64188.0,0.00604]
[1724503276685,0.077897,64189.0,64188.0,0.00604]
[1724503276888,0.12457,64189.0,64188.0,0.00604]
[1724503277386,0.12457,64189.0,64188.0,0.06800209]
[1724503277984,0.077897,64189.0,64188.0,0.06800209]
[1724503278392,0.12457,64189.0,64188.0,0.06800209]
[1724503278689,0.12457,64189.0,64188.0,0.00604]
[1724503278889,0.12457,64189.0,64188.0,0.06800209]
[1724503279083,0.077897,64189.0,64188.0,0.06800209]
[1724503279287,0.12457,64189.0,64188.0,0.06800209]
[1724503279885,0.077897,64189.0,64188.0,0.06800209]
[1724503280284,0.12457,64189.0,64188.0,0.06800209]
[1724503280690,0.077897,64189.0,64188.0,0.00604]
[1724503282089,0.077897,64189.0,64188.0,0.06800209]
[1724503282588,0.077897,64189.0,64188.0,0.00604]
[1724503283185,0.14018503,64189.0,64188.0,0.06800209]
[1724503283691,0.077897,64189.0,64188.0,0.06800209]
[1724503284197,0.14018503,64189.0,64188.0,0.00604]
[1724503285793,0.077897,64189.0,64188.0,0.00604]
[1724503286199,0.0623343,64189.0,64188.0,0.083898]
[1724503286396,0.00023306,64192.0,64191.0,0.077854]
[1724503286600,0.04671962,64195.0,64194.0,0.077851]
[1724503286789,0.03537707,64198.0,64197.0,0.077847]
[1724503286997,0.03537707,64198.0,64197.0,0.167847]
[1724503287297,0.06229283,64202.0,64201.0,0.077842]
[1724503287500,0.51309283,64207.0,64201.0,0.42255836]
[1724503287796,0.51309283,64207.0,64204.0,0.13630985]
[1724503288198,0.51309283,64207.0,64206.0,4e-05]
[1724503288502,0.4508,64207.0,64206.0,4e-05]
[1724503288988,0.59092783,64207.0,64206.0,4e-05]
[1724503289493,0.55387167,64207.0,64206.0,4e-05]
[1724503289891,0.55387167,64207.0,64206.0,0.00104]
[1724503290300,0.55487167,64207.0,64206.0,0.00204]
[1724503290499,0.5548718,64207.0,64206.0,0.00204]
[1724503291398,0.529635,64207.0,64206.0,0.00204]
[1724503291595,0.168835,64207.0,64206.0,0.00204]
[1724503292298,0.24651332,64207.0,64206.0,0.00204]
[1724503292603,0.168835,64207.0,64206.0,0.00204]
[1724503293098,0.168835,64207.0,64206.0,0.01928287]
[1724503293292,0.168835,64207.0,64206.0,0.00204]
[1724503294492,0.2622569,64207.0,64206.0,0.00204]
[1724503295294,0.26225706,64207.0,64206.0,0.00204]
[1724503295699,0.40203872,64207.0,64206.0,0.00204]
[1724503295898,0.26225706,64207.0,64206.0,0.00204]
[1724503296102,0.40203893,64207.0,64206.0,0.00204]
[1724503296695,0.26225706,64207.0,64206.0,0.00204]
[1724503296897,0.40203893,64207.0,64206.0,0.00204]
[1724503297596,0.26225706,64207.0,64206.0,0.00204]
[1724503297900,0.26225706,64207.0,64206.0,0.01941795]
[1724503298502,0.168835,64207.0,64206.0,0.01941795]
[1724503300110,3.938835,64207.0,64206.0,0.01941795]
[1724503300411,3.938835,64207.0,64202.0,0.438641]
[1724503300412,0.07784,64203.0,64202.0,0.3608]
[1724503300604,0.16784,64203.0,64202.0,0.3608]
[1724503301004,3.93784,64203.0,64202.0,0.3608]
[1724503301207,3.93788,64203.0,64202.0,0.3608]
[1724503302401,3.93788,64203.0,64202.0,0.3618]
[1724503302402,3.99999509,64203.0,64202.0,0.3618]
[1724503302605,4.00199509,64203.0,64202.0,0.3628]
[1724503303004,4.00199509,64203.0,64202.0,0.37988301]
[1724503303209,4.00199509,64203.0,64202.0,0.01908301]
[1724503304410,3.93988,64203.0,64202.0,0.01908301]
[1724503311621,4.485,64203.0,64202.0,0.002]
[1724503312005,0.077845,64199.0,64198.0,0.36103368]
[1724503312210,0.167845,64199.0,64198.0,0.36103368]
[1724503312819,0.167885,64199.0,64198.0,0.36103368]
[1724503313211,0.169885,64199.0,64198.0,0.36203368]
[1724503313416,0.23206574,64199.0,64198.0,0.36303368]
[1724503314407,0.169885,64199.0,64198.0,0.36303368]
[1724503314812,0.23210073,64199.0,64198.0,0.36303368]
[1724503315420,0.169885,64199.0,64198.0,0.36303368]
[1724503316415,0.169885,64199.0,64198.0,0.38019253]
[1724503317320,0.169885,64199.0,64198.0,0.06570238]
[1724503321229,0.079885,64199.0,64198.0,0.06570238]
[1724503321426,0.169885,64199.0,64198.0,0.06570238]
[1724503322614,0.22519633,64199.0,64198.0,0.01939253]
[1724503322809,0.25526695,64199.0,64198.0,0.01939253]
[1724503323017,0.22519594,64199.0,64198.0,0.01939253]
[1724503324416,0.33389735,64199.0,64198.0,0.01939253]
[1724503324725,0.22519594,64199.0,64198.0,0.01939253]
[1724503325226,0.2633168,64199.0,64198.0,0.01939253]
[1724503325615,0.169885,64199.0,64198.0,0.01939253]
[1724503326418,0.169885,64199.0,64198.0,0.06570238]
[1724503327224,0.079885,64199.0,64198.0,0.06570238]
[1724503327524,0.00204,64199.0,64198.0,0.17115089]
[1724503327931,0.00204,64199.0,64198.0,0.10939253]
[1724503328424,0.00204,64199.0,64198.0,0.18723853]
[1724503329922,0.00204,64199.0,64198.0,0.54803853]
[1724503332726,0.00204,64199.0,64198.0,0.18723853]
[1724503332921,0.00204,64199.0,64198.0,0.54803853]
[1724503338332,0.00204,64199.0,64198.0,0.60982277]
[1724503339334,0.00204,64199.0,64198.0,0.60982326]
[1724503340232,0.00204,64199.0,64198.0,0.51982326]
[1724503343435,0.09204,64199.0,64198.0,0.44197726]
[1724503344627,0.247728,64199.0,64198.0,0.38019253]
[1724503344928,0.608528,64199.0,64198.0,0.01939253]
[1724503345432,0.702928,64199.0,64198.0,0.01939253]
[1724503345638,0.07785,64194.0,64193.0,0.04637161]
[1724503345821,0.16785,64194.0,64193.0,0.04637161]
[1724503346135,0.16785,64194.0,64189.0,0.06178473]
[1724503346136,0.077852,64193.0,64189.0,0.06178473]
[1724503346430,0.09,64190.0,64189.0,0.06178473]
[1724503346625,0.09,64190.0,64188.0,0.06178473]
[1724503347422,4e-05,64189.0,64187.0,0.13964373]
[1724503348126,4e-05,64188.0,64187.0,0.13964373]
[1724503348326,3.77004,64188.0,64187.0,0.13964373]
[1724503348737,3.77004,64188.0,64187.0,0.06178473]
[1724503349440,3.77004,64188.0,64187.0,0.02506078]
[1724503350333,3.77004,64188.0,64187.0,0.08684551]
[1724503351227,3.77004,64188.0,64187.0,0.02506078]
[1724503353733,3.77004,64188.0,64187.0,0.10291978]
[1724503355839,3.847898,64188.0,64187.0,0.02506078]
[1724503356143,3.847898,64188.0,64187.0,0.0543446]
[1724503356437,3.847898,64188.0,64187.0,0.008]
[1724503366545,3.77004,64188.0,64187.0,0.1322036]
[1724503366848,3.77004,64188.0,64187.0,0.085859]
[1724503367949,3.847897,64188.0,64187.0,0.085859]
[1724503370057,3.847897,64188.0,64187.0,0.446659]
[1724503372054,3.847897,64188.0,64187.0,0.085859]
[1724503372651,3.847897,64188.0,64187.0,0.14764373]
[1724503372849,3.847897,64188.0,64187.0,0.085859]
[1724503374759,3.847897,64188.0,64187.0,0.14764373]
[1724503376159,3.847897,64188.0,64187.0,0.50844373]
[1724503377554,3.847897,64188.0,64187.0,0.14764373]
[1724503377755,3.847897,64188.0,64187.0,0.50844373]
[1724503378859,3.847897,64188.0,64187.0,0.14764373]
[1724503379655,3.847897,64188.0,64187.0,0.50844373]
[1724503381055,3.847897,64188.0,64187.0,0.14764373]
[1724503381361,3.847897,64188.0,64187.0,0.50844373]
[1724503382859,3.847897,64188.0,64187.0,0.14764373]
[1724503383057,3.847897,64188.0,64187.0,0.50844373]
[1724503384759,3.847897,64188.0,64187.0,0.50849701]
[1724503384960,3.847897,64188.0,64187.0,0.446659]
[1724503386466,3.847897,64188.0,64187.0,0.50849966]
[1724503387253,3.847897,64188.0,64187.0,0.446659]
[1724503387662,3.847897,64188.0,64187.0,0.50850083]
[1724503388356,3.847897,64188.0,64187.0,0.446659]
[1724503389764,0.077862,64184.0,64183.0,0.00023368]
[1724503389952,0.167862,64184.0,64183.0,0.00023368]
[1724503390160,0.23013373,64184.0,64183.0,0.06209642]
[1724503390359,0.27793373,64184.0,64183.0,0.06209642]
[1724503390656,0.27797373,64184.0,64183.0,0.06209642]
[1724503390952,0.27797373,64184.0,64183.0,0.07009642]
[1724503390953,0.215702,64184.0,64183.0,0.07009642]
[1724503391155,0.27797162,64184.0,64183.0,0.07909642]
[1724503391463,0.27797162,64184.0,64183.0,0.01723368]
[1724503391464,0.683102,64184.0,64183.0,0.01723368]
[1724503391665,0.215702,64184.0,64183.0,0.01723368]
[1724503392059,0.576502,64184.0,64183.0,0.01723368]
[1724503393961,0.576502,64184.0,64183.0,0.06363162]
[1724503394665,0.576502,64184.0,64183.0,0.01723368]
[1724503394865,0.576502,64184.0,64183.0,0.06362122]
[1724503395260,0.654364,64184.0,64183.0,0.01723368]
[1724503397756,0.293564,64184.0,64183.0,0.01723368]
[1724503399971,0.654364,64184.0,64183.0,0.01723368]
[1724503403465,0.293564,64184.0,64183.0,0.01723368]
[1724503404778,0.35574801,64184.0,64183.0,0.01723368]
[1724503406268,0.293564,64184.0,64183.0,0.01723368]
[1724503406772,0.35575058,64184.0,64183.0,0.01723368]
[1724503407273,0.06222658,64184.0,64183.0,0.01723368]
[1724503407587,4e-05,64184.0,64183.0,0.47227228]
[1724503407781,4e-05,64184.0,64183.0,0.47553368]
[1724503408981,4e-05,64184.0,64183.0,0.55339668]
[1724503411079,0.09004,64184.0,64183.0,0.55339668]
[1724503412879,0.09004,64184.0,64183.0,0.19259668]
[1724503413073,0.09004,64184.0,64183.0,0.55339668]
[1724503414284,0.09004,64184.0,64183.0,0.61525942]
[1724503415779,0.09004,64184.0,64183.0,0.55339668]
[1724503416177,4e-05,64184.0,64183.0,0.64339668]
[1724503421392,4e-05,64184.0,64183.0,0.55339668]
[1724503425093,4e-05,64184.0,64183.0,0.19259668]
[1724503425287,4e-05,64184.0,64183.0,0.55339668]
[1724503430092,4e-05,64184.0,64183.0,0.19259668]
[1724503430297,4e-05,64184.0,64183.0,0.55339668]
[1724503430894,4e-05,64184.0,64183.0,0.19259668]
[1724503431198,4e-05,64184.0,64183.0,0.55339668]
[1724503434189,3.8608,64188.0,64186.0,0.077859]
[1724503434394,3.86,64188.0,64186.0,0.077859]
[1724503434596,3.90663898,64188.0,64186.0,0.13965094]
[1724503435106,3.90663898,64188.0,64187.0,4e-05]
[1724503435399,3.77,64188.0,64187.0,0.13968994]
[1724503435596,3.86,64188.0,64187.0,0.13968994]
[1724503435997,3.90668229,64188.0,64187.0,0.13968994]
[1724503436202,3.86,64188.0,64187.0,0.077898]
[1724503436399,3.86,64188.0,64187.0,0.081898]
[1724503436798,3.77,64188.0,64187.0,0.081898]
[1724503436994,3.88524248,64188.0,64187.0,0.081898]
[1724503437901,3.88524248,64188.0,64187.0,0.084898]
[1724503439102,3.88524248,64188.0,64187.0,0.445698]
[1724503439298,0.0933515,64192.0,64187.0,0.36784]
[1724503439501,0.077851,64193.0,64191.0,0.077853]
[1724503439692,0.02524084,64192.0,64191.0,0.077853]
[1724503439895,3.79524084,64192.0,64191.0,0.077853]
[1724503440097,3.88524084,64192.0,64191.0,0.077853]
[1724503440297,3.97859234,64192.0,64191.0,0.077853]
[1724503440505,3.96309284,64192.0,64191.0,0.077853]
[1724503440908,3.96309284,64192.0,64191.0,0.13967079]
[1724503440909,4.00012995,64192.0,64191.0,0.13967079]
[1724503441702,4.00013079,64192.0,64191.0,0.077853]
[1724503441907,3.937852,64192.0,64191.0,0.077853]
[1724503442510,3.938852,64192.0,64191.0,0.077853]
[1724503444401,3.848852,64192.0,64191.0,0.077853]
[1724503447416,3.938852,64192.0,64191.0,0.077853]
[1724503448303,3.942852,64192.0,64191.0,0.077853]
[1724503448811,0.077854,64191.0,64189.0,0.3608]
[1724503449509,0.077854,64191.0,64190.0,0.06184001]
[1724503451116,0.081854,64191.0,64190.0,0.06184001]
[1724503451413,0.082854,64191.0,64190.0,0.06184001]
[1724503452111,0.085854,64191.0,64190.0,0.06284001]
[1724503452913,0.087854,64191.0,64190.0,0.06284001]
[1724503455210,0.087854,64191.0,64190.0,0.001]
[1724503455611,0.177854,64191.0,64190.0,0.001]
[1724503455817,0.177854,64191.0,64190.0,0.06284245]
[1724503456017,0.177854,64191.0,64190.0,0.001]
[1724503456248,0.177854,64191.0,64190.0,0.06284277]
[1724503458109,0.177854,64191.0,64190.0,0.001]
[1724503459516,0.177854,64191.0,64190.0,0.06284408]
[1724503460624,0.087854,64191.0,64190.0,0.06284408]
[1724503460920,0.177854,64191.0,64190.0,0.06284408]
[1724503462810,0.177854,64191.0,64190.0,0.001]
[1724503465119,0.077857,64188.0,64187.0,4e-05]
[1724503465419,0.24573071,64188.0,64187.0,4e-05]
[1724503465618,0.31738771,64188.0,64187.0,4e-05]
[1724503466214,0.31938771,64188.0,64187.0,4e-05]
[1724503466522,0.241514,64188.0,64187.0,4e-05]
[1724503468123,0.244514,64188.0,64187.0,4e-05]
[1724503470933,0.155724,64184.0,64183.0,0.00023368]
[1724503471222,0.245724,64184.0,64183.0,0.00023368]
[1724503471424,4.015724,64184.0,64183.0,0.00023368]
[1724503471922,3.847862,64184.0,64183.0,0.00023368]
[1724503472130,3.847862,64184.0,64183.0,0.00223368]
[1724503472422,3.91008202,64184.0,64183.0,0.00323368]
[1724503472625,3.847862,64184.0,64183.0,0.00323368]
[1724503473020,3.91008202,64184.0,64183.0,0.00323368]
[1724503473319,3.847862,64184.0,64183.0,0.10043368]
[1724503473917,3.937862,64184.0,64183.0,0.10043368]
[1724503474131,3.96310685,64184.0,64183.0,0.10043368]
[1724503477229,3.937862,64184.0,64183.0,0.10043368]
[1724503477735,3.937862,64184.0,64183.0,0.17829668]
[1724503477736,3.81665957,64184.0,64183.0,0.17829668]
[1724503478623,3.77,64184.0,64183.0,0.17829668]
[1724503479424,3.81665957,64184.0,64183.0,0.17829668]
[1724503479832,3.77,64184.0,64183.0,0.17829668]
[1724503480026,3.81665957,64184.0,64183.0,0.17829668]
[1724503481127,3.77,64184.0,64183.0,0.17829668]
[1724503484920,3.81666936,64184.0,64183.0,0.24014076]
[1724503485125,3.77,64184.0,64183.0,0.17829668]
[1724503485633,3.81666936,64184.0,64183.0,0.17829668]
[1724503485933,3.81666936,64184.0,64183.0,0.26829668]
[1724503486829,0.04666936,64188.0,64183.0,0.19043368]
[1724503487136,0.04666936,64189.0,64187.0,0.4508]
[1724503487333,0.04666936,64189.0,64188.0,0.06173197]
[1724503487833,3.77,64189.0,64188.0,0.077897]
[1724503488425,3.773,64189.0,64188.0,0.077897]
[1724503488940,3.774,64189.0,64188.0,0.077897]
[1724503489837,3.774,64189.0,64188.0,0.438697]
[1724503489838,3.777,64189.0,64188.0,0.438697]
[1724503493826,3.777,64189.0,64188.0,0.50042897]
[1724503494238,0.02934045,64197.0,64195.0,0.077848]
[1724503494436,0.00012,64201.0,64195.0,0.528648]
[1724503494634,0.00012,64201.0,64195.0,0.438648]
[1724503494836,0.00012,64201.0,64195.0,0.528648]
[1724503495035,0.00012,64201.0,64195.0,0.528688]
[1724503495738,0.00523368,64196.0,64195.0,0.529688]
[1724503496544,0.01023368,64196.0,64195.0,0.530688]
[1724503497227,0.01023368,64196.0,64195.0,1.758808]
[1724503500336,0.00012,64201.0,64200.0,0.077842]
[1724503500635,0.00012,64201.0,64200.0,0.22934597]
[1724503500838,0.00012,64201.0,64200.0,0.69662597]
[1724503501038,0.00012,64201.0,64200.0,0.22938597]
[1724503501635,0.00012,64201.0,64200.0,0.69666597]
[1724503501840,0.00012,64201.0,64200.0,0.69766597]
[1724503501841,0.00212,64201.0,64200.0,0.69766597]
[1724503503133,0.00212,64201.0,64200.0,0.637162]
[1724503504637,0.00212,64201.0,64200.0,0.169882]
[1724503505032,0.00212,64201.0,64200.0,0.079882]
[1724503507647,0.00212,64201.0,64200.0,0.801482]
[1724503515253,0.00212,64201.0,64200.0,0.079882]
[1724503515561,0.00212,64201.0,64200.0,0.801482]
[1724503516761,0.169961,64201.0,64200.0,0.36284]
[1724503517056,0.169961,64201.0,64200.0,0.00204]
[1724503519451,1.037241,64201.0,64200.0,0.00204]
[1724503519853,4.807241,64201.0,64200.0,0.00204]
[1724503520055,4.885082,64201.0,64200.0,0.00204]
[1724503520460,0.46728,64200.0,64191.0,0.37789033]
[1724503520660,0.09,64192.0,64185.0,0.06150397]
[1724503520852,0.167862,64184.0,64183.0,0.00023368]
[1724503521457,3.937862,64184.0,64183.0,0.00023368]
[1724503521657,3.937902,64184.0,64183.0,0.00023368]
[1724503521862,4.22084,64184.0,64173.0,0.06150397]
[1724503522065,0.09,64174.0,64173.0,0.06150397]
[1724503522264,0.09,64174.0,64172.0,0.3608]
[1724503522462,0.0486,64176.0,64172.0,0.3608]
[1724503522962,4e-05,64173.0,64170.0,0.295958]
[1724503523265,4e-05,64173.0,64171.0,0.077877]
[1724503523668,4e-05,64173.0,64172.0,0.028]
[1724503524163,4e-05,64173.0,64172.0,0.3888]
[1724503524763,0.00023368,64180.0,64172.0,0.85628]
[1724503524961,0.00023368,64180.0,64179.0,0.3608]
[1724503525153,0.00023368,64180.0,64175.0,0.06160908]
[1724503525359,0.00023368,64180.0,64174.0,0.10780908]
[1724503525561,0.00023368,64180.0,64179.0,0.438708]
[1724503526563,0.00088,64184.0,64183.0,0.077863]
[1724503526770,0.0491,64189.0,64184.0,0.077861]
[1724503527069,3.8191,64189.0,64185.0,0.07786]
[1724503527269,0.0491,64189.0,64185.0,0.07786]
[1724503527459,0.0491,64189.0,64188.0,4e-05]
[1724503529673,0.0501,64189.0,64188.0,4e-05]
[1724503530060,0.127956,64189.0,64188.0,4e-05]
[1724503532993,0.077863,64183.0,64182.0,0.00023368]
[1724503533489,3.847863,64183.0,64182.0,0.00023368]
[1724503533683,3.847903,64183.0,64182.0,0.00023368]
[1724503534275,3.847903,64183.0,64182.0,0.00323368]
[1724503535381,3.847903,64183.0,64182.0,0.00723368]
[1724503540396,0.077903,64183.0,64182.0,0.00723368]
[1724503541089,3.847903,64183.0,64182.0,0.00723368]
[1724503542086,0.077871,64177.0,64174.0,0.077873]
[1724503542291,0.4061,64182.0,64174.0,0.077873]
[1724503542685,0.077873,64175.0,64174.0,0.077873]
[1724503542996,0.03895753,64175.0,64174.0,0.077873]
[1724503543391,0.03895753,64175.0,64174.0,0.101873]
[1724503544598,4e-05,64175.0,64174.0,0.101873]
[1724503545196,4e-05,64175.0,64174.0,0.16348208]
[1724503546296,4e-05,64175.0,64174.0,0.101873]
[1724503546892,4e-05,64175.0,64174.0,0.16360007]
[1724503547102,4e-05,64175.0,64174.0,0.101873]
[1724503549287,4e-05,64175.0,64174.0,0.17875318]
[1724503549695,4e-05,64175.0,64174.0,0.101873]
[1724503550699,0.36084,64175.0,64174.0,0.16369279]
[1724503550887,0.36084,64175.0,64174.0,0.101873]
[1724503552005,0.36084,64175.0,64174.0,0.16369279]
[1724503552299,0.36084,64175.0,64174.0,0.101873]
[1724503553201,4e-05,64175.0,64174.0,0.101873]
[1724503555295,0.077913,64175.0,64174.0,0.101873]
[1724503555505,0.077913,64175.0,64174.0,0.16368341]
[1724503556006,0.077913,64175.0,64174.0,0.0858118]
[1724503556302,0.077913,64175.0,64174.0,0.024]
[1724503559594,0.077913,64175.0,64174.0,0.08581221]
[1724503559800,0.077913,64175.0,64174.0,0.024]
[1724503560892,0.077913,64175.0,64174.0,0.08581854]
[1724503561297,0.077913,64175.0,64174.0,0.024]
[1724503561795,0.077913,64175.0,64174.0,0.101874]
[1724503568404,0.167913,64175.0,64174.0,0.101874]
[1724503569109,0.077913,64175.0,64174.0,0.101874]
[1724503570604,0.167913,64175.0,64174.0,0.101874]
[1724503574414,0.077913,64175.0,64174.0,0.101874]
[1724503574612,0.14012582,64175.0,64174.0,0.16376873]
[1724503574907,0.077913,64175.0,64174.0,0.08589473]
[1724503575313,0.077913,64175.0,64174.0,0.024]
[1724503575508,0.1402039,64175.0,64174.0,0.08589473]
[1724503575708,0.1402039,64175.0,64174.0,0.024]
[1724503575914,0.077913,64175.0,64174.0,0.024]
[1724503576412,0.155786,64175.0,64174.0,0.024]
[1724503578614,0.21805682,64175.0,64174.0,0.024]
[1724503578817,0.155786,64175.0,64174.0,0.024]
[1724503579609,0.21805245,64175.0,64174.0,0.024]
[1724503580309,0.155786,64175.0,64174.0,0.024]
[1724503580501,0.21805245,64175.0,64174.0,0.024]
[1724503581099,0.155786,64175.0,64174.0,0.024]
[1724503581613,0.155786,64175.0,64174.0,0.08589473]
[1724503581915,0.155786,64175.0,64174.0,0.024]
[1724503582600,0.155786,64175.0,64174.0,0.08587399]
[1724503582801,0.155786,64175.0,64174.0,0.024]
[1724503583816,0.077913,64175.0,64174.0,0.024]
[1724503586703,0.077913,64175.0,64174.0,0.101874]
[1724503587418,4e-05,64175.0,64174.0,0.101874]
[1724503588009,4e-05,64175.0,64174.0,0.150974]
[1724503589810,0.06250013,64181.0,64174.0,0.150974]
[1724503589811,0.00023368,64181.0,64180.0,0.077867]
[1724503590720,0.00023368,64181.0,64180.0,0.077907]
[1724503591314,0.07809868,64181.0,64180.0,0.082907]
[1724503591816,0.07809868,64181.0,64180.0,0.087907]
[1724503592520,0.00023368,64181.0,64180.0,0.526574]
[1724503592720,0.06226645,64191.0,64180.0,1.03479248]
[1724503592919,0.06226645,64196.0,64195.0,0.077848]
[1724503593125,3.83226645,64197.0,64196.0,0.077847]
[1724503593318,3.847846,64197.0,64196.0,0.077847]
[1724503593818,3.847846,64197.0,64196.0,0.077887]
[1724503594617,3.848846,64197.0,64196.0,0.078887]
[1724503595030,3.853846,64197.0,64196.0,0.079887]
[1724503596519,3.943846,64197.0,64196.0,0.079887]
[1724503596725,3.943846,64197.0,64196.0,0.00204]
[1724503597614,3.853846,64197.0,64196.0,0.00204]
[1724503597924,3.943846,64197.0,64196.0,0.00204]
[1724503599828,4.304646,64197.0,64196.0,0.00204]
[1724503601325,4.771966,64197.0,64194.0,0.04636227]
[1724503601525,4.771966,64197.0,64190.0,0.00023368]
[1724503601526,0.155706,64191.0,64190.0,0.00023368]
[1724503601726,0.66863551,64191.0,64190.0,0.00023368]
[1724503601920,4.298653,64191.0,64190.0,0.00023368]
[1724503602229,4.346153,64191.0,64190.0,0.00023368]
[1724503602616,4.298653,64191.0,64190.0,0.00023368]
[1724503602927,4.299653,64191.0,64190.0,0.00023368]
[1724503604028,4.304653,64191.0,64190.0,0.00023368]
[1724503604421,4.214653,64191.0,64190.0,0.00023368]
[1724503609828,4.214653,64191.0,64180.0,0.3608]
[1724503609829,4.1368,64191.0,64180.0,0.04636227]
[1724503610042,0.077867,64180.0,64179.0,0.06364345]
[1724503610233,0.077868,64179.0,64178.0,0.04636227]
[1724503610436,0.077868,64179.0,64178.0,0.04630802]
[1724503611328,0.077868,64179.0,64178.0,0.007]
[1724503611934,0.077868,64179.0,64178.0,0.014]
[1724503614639,3.847868,64179.0,64178.0,0.014]
[1724503617531,3.89449577,64179.0,64178.0,0.014]
[1724503620242,3.89449577,64179.0,64178.0,0.0604079]
[1724503620736,3.847868,64179.0,64178.0,0.014]
[1724503621131,3.847868,64179.0,64178.0,0.0604079]
[1724503622439,0.3608,64182.0,64181.0,0.077865]
[1724503622746,0.00023368,64185.0,64184.0,0.077862]
[1724503623745,0.00023368,64185.0,64184.0,0.077902]
[1724503624435,0.00023368,64185.0,64184.0,0.14074288]
[1724503625135,0.07809368,64185.0,64184.0,0.14174288]
[1724503627235,0.07809368,64185.0,64184.0,0.079902]
[1724503627236,0.12472145,64185.0,64184.0,0.079902]
[1724503628746,0.12472145,64185.0,64184.0,0.00204]
[1724503628946,0.12472145,64185.0,64184.0,0.04845873]
[1724503628947,0.15595368,64185.0,64184.0,0.04845873]
[1724503629138,0.68549072,64185.0,64184.0,0.00204]
[1724503629334,0.71455368,64185.0,64184.0,0.00204]
[1724503629641,0.24715368,64185.0,64184.0,0.00204]
[1724503629845,0.60795368,64185.0,64184.0,0.00204]
[1724503631542,1.31963368,64185.0,64181.0,0.04641873]
[1724503631744,0.077873,64175.0,64174.0,0.04646023]
[1724503631944,0.077875,64173.0,64171.0,0.04646023]
[1724503632249,3.847875,64173.0,64169.0,0.04646023]